fUSD/lending_fUSD_20240408
["ID","MTS","AMOUNT","RATE_DAILY","PERIOD"]
[321914232,1712617849645,-500.0,0.00024657,2]
[321914233,1712617849654,-151.0,0.00024657,7]
[321914234,1712617849663,-500.0,0.00024657,2]
[321914235,1712617849673,-500.0,0.00024657,2]
[321914236,1712617849682,-511.45217428,0.00024657,2]
[321914237,1712617849692,-151.0,0.00024657,7]
[321914238,1712617849701,-174.55613907,0.00024657,2]
[321914239,1712617849712,-896.62,0.00024657,2]
[321914240,1712617849721,-500.0,0.00024657,2]
[321914241,1712617849731,-718.84,0.00024657,2]
[321914242,1712617849740,-615.29713687,0.00024657,2]
[321914243,1712617849750,-500.0,0.00024657,2]
[321914244,1712617849759,-871.91,0.00024657,2]
[321914245,1712617849768,-500.0,0.00024657,2]
[321914246,1712617849777,-151.0,0.00024657,7]
[321914247,1712617849787,-500.0,0.00024657,2]
[321914248,1712617849796,-151.0,0.00024657,7]
[321914249,1712617849807,-503.69802226,0.00024657,2]
[321914250,1712617849818,-1977.87,0.00024657,2]
[321914251,1712617849828,-151.0,0.00024657,7]
[321914252,1712617849836,-500.0,0.00024657,2]
[321914253,1712617849846,-151.0,0.00024657,7]
[321914254,1712617849856,-931.49,0.00024657,2]
[321914255,1712617849865,-500.0,0.00024657,2]
[321914256,1712617849875,-1748.15,0.00024657,2]
[321914257,1712617849884,-2050.44,0.00024657,2]
[321914258,1712617849893,-500.0,0.00024657,2]
[321914259,1712617849903,-151.0,0.00024657,7]
[321914260,1712617849912,-151.0,0.00024657,7]
[321914261,1712617849922,-2017.6,0.00024657,2]
[321914262,1712617849931,-855.12,0.00024657,2]
[321914263,1712617849941,-151.0,0.00024657,7]
[321914264,1712617849951,-500.0,0.00024657,2]
[321914265,1712617849961,-151.0,0.00024657,7]
[321914266,1712617849970,-500.0,0.00024657,2]
[321914267,1712617849979,-500.0,0.00024657,2]
[321914268,1712617849988,-1129.47,0.00024657,2]
[321914269,1712617849997,-500.0,0.00024657,2]
[321914270,1712617850006,-500.0,0.00024657,2]
[321914271,1712617850016,-500.0,0.00024657,2]
[321914272,1712617850025,-500.0,0.00024657,2]
[321914273,1712617850034,-804.61,0.00024657,2]
[321914274,1712617850043,-549.4888695,0.00024657,2]
[321914275,1712617850053,-517.52,0.00024657,2]
[321914276,1712617850062,-1469.7,0.00024657,2]
[321914277,1712617850071,-155.0,0.00024657,2]
[321914278,1712617850080,-500.0,0.00024657,2]
[321914279,1712617850090,-500.0,0.00024657,2]
[321914280,1712617850099,-178.422801,0.00024657,7]
[321914281,1712617850108,-178.422801,0.00024657,7]
[321914282,1712617850117,-178.422801,0.00024657,7]
[321914283,1712617850126,-500.0,0.00024657,2]
[321914284,1712617850135,-178.422801,0.00024657,7]
[321914285,1712617850144,-298.40518482,0.00024657,2]
[321914286,1712617850153,-688.88,0.00024657,2]
[321914287,1712617850163,-2268.15,0.00024657,2]
[321914288,1712617850172,-500.0,0.00024657,2]
[321914289,1712617850181,-500.0,0.00024657,2]
[321914290,1712617850190,-178.422801,0.00024657,7]
[321914291,1712617850199,-500.0,0.00024657,2]
[321914292,1712617850208,-500.0,0.00024657,2]
[321914293,1712617850219,-178.422801,0.00024657,7]
[321914294,1712617850228,-178.422801,0.00024657,7]
[321914295,1712617850237,-178.422801,0.00024657,7]
[321914296,1712617850246,-546.72720199,0.00024657,2]
[321914297,1712617850255,-500.0,0.00024657,2]
[321914298,1712617850265,-500.0,0.00024657,2]
[321914299,1712617850274,-500.0,0.00024657,2]
[321914300,1712617850283,-211.13954061,0.00024657,2]
[321914301,1712617850293,-234.92369219,0.00024657,2]
[321914302,1712617850302,-1685.82,0.00024657,2]
[321914303,1712617850311,-500.0,0.00024657,2]
[321914304,1712617850320,-500.0,0.00024657,2]
[321914305,1712617850330,-500.0,0.00024657,2]
[321914306,1712617850339,-500.0,0.00024657,2]
[321914307,1712617850348,-500.0,0.00024657,2]
[321914308,1712617850357,-500.0,0.00024657,2]
[321914309,1712617850366,-500.0,0.00024657,2]
[321914310,1712617850376,-500.0,0.00024657,2]
[321914311,1712617850385,-500.0,0.00024657,2]
[321914312,1712617850394,-500.0,0.00024657,2]
[321914313,1712617850403,-500.0,0.00024657,2]
[321914314,1712617850411,-500.0,0.00024657,2]
[321914315,1712617850421,-1144.58,0.00024657,2]
[321914316,1712617850430,-500.0,0.00024657,2]
[321914317,1712617850439,-1120.7,0.00024657,2]
[321914318,1712617850448,-500.0,0.00024657,2]
[321914319,1712617850458,-176.38931579,0.00024657,2]
[321914320,1712617850468,-787.42,0.00024657,2]
[321914321,1712617850478,-500.0,0.00024657,2]
[321914322,1712617850487,-1359.62,0.00024657,2]
[321914323,1712617850496,-500.0,0.00024657,2]
[321914324,1712617850505,-500.0,0.00024657,2]
[321914325,1712617850514,-500.0,0.00024657,2]
[321914326,1712617850523,-515.18941521,0.00024657,2]
[321914327,1712617850533,-500.0,0.00024657,2]
[321914328,1712617850542,-500.0,0.00024657,2]
[321914329,1712617850551,-500.0,0.00024657,2]
[321914330,1712617850560,-500.0,0.00024657,2]
[321914331,1712617850569,-500.0,0.00024657,2]
[321914332,1712617850578,-175.26114408,0.00024657,2]
[321914333,1712617850587,-748.15,0.00024657,2]
[321914334,1712617850596,-500.0,0.00024657,2]
[321914335,1712617850606,-500.0,0.00024657,2]
[321914336,1712617850615,-500.0,0.00024657,2]
[321914337,1712617850624,-503.4302442,0.00024657,2]
[321914338,1712617850634,-500.0,0.00024657,2]
[321914339,1712617850643,-859.06,0.00024657,2]
[321914340,1712617850653,-693.18,0.00024657,2]
[321914341,1712617850663,-500.0,0.00024657,2]
[321914342,1712617850672,-500.0,0.00024657,2]
[321914343,1712617850682,-500.0,0.00024657,2]
[321914344,1712617850691,-500.0,0.00024657,2]
[321914345,1712617850700,-500.0,0.00024657,2]
[321914346,1712617850710,-500.0,0.00024657,2]
[321914347,1712617850719,-500.0,0.00024657,2]
[321914348,1712617850728,-500.0,0.00024657,2]
[321914349,1712617850737,-500.0,0.00024657,2]
[321914350,1712617850747,-500.0,0.00024657,2]
[321914351,1712617850757,-500.0,0.00024657,2]
[321914352,1712617850766,-500.0,0.00024657,2]
[321914353,1712617850776,-500.0,0.00024657,2]
[321914354,1712617850786,-500.0,0.00024657,2]
[321914355,1712617850796,-500.0,0.00024657,2]
[321914356,1712617850812,-262.80017051,0.00024657,2]
[321914357,1712617850826,-500.0,0.00024657,2]
[321914358,1712617850835,-562.91,0.00024657,2]
[321914359,1712617850844,-2351.95,0.00024657,2]
[321914360,1712617850854,-500.0,0.00024657,2]
[321914361,1712617850864,-863.58,0.00024657,2]
[321914362,1712617850873,-1470.75,0.00024657,2]
[321914363,1712617850884,-500.0,0.00024657,2]
[321914364,1712617850894,-500.0,0.00024657,2]
[321914365,1712617850903,-500.0,0.00024657,2]
[321914366,1712617850913,-500.0,0.00024657,2]
[321914367,1712617850922,-511.35945603,0.00024657,2]
[321914368,1712617850932,-500.0,0.00024657,2]
[321914369,1712617850942,-500.0,0.00024657,2]
[321914370,1712617850951,-1131.42,0.00024657,2]
[321914371,1712617850961,-500.0,0.00024657,2]
[321914372,1712617850970,-500.0,0.00024657,2]
[321914373,1712617850981,-500.0,0.00024657,2]
[321914374,1712617850990,-500.0,0.00024657,2]
[321914375,1712617851000,-982.83,0.00024657,2]
[321914376,1712617851010,-500.0,0.00024657,2]
[321914377,1712617851019,-500.0,0.00024657,2]
[321914378,1712617851028,-500.0,0.00024657,2]
[321914379,1712617851038,-1535.24,0.00024657,2]
[321914380,1712617851047,-266.54964931,0.00024657,2]
[321914381,1712617851056,-500.0,0.00024657,2]
[321914382,1712617851066,-500.0,0.00024657,2]
[321914383,1712617851075,-664.34,0.00024657,2]
[321914384,1712617851084,-500.0,0.00024657,2]
[321914385,1712617851094,-500.0,0.00024657,2]
[321914386,1712617851103,-151.0,0.00024657,7]
[321914387,1712617851112,-500.0,0.00024657,2]
[321914388,1712617851121,-151.0,0.00024657,7]
[321914389,1712617851131,-500.0,0.00024657,2]
[321914390,1712617851140,-151.0,0.00024657,7]
[321914391,1712617851149,-151.0,0.00024657,7]
[321914392,1712617851158,-151.0,0.00024657,7]
[321914393,1712617851168,-3167.29,0.00024657,2]
[321914394,1712617851177,-500.0,0.00024657,2]
[321914395,1712617851187,-151.0,0.00024657,7]
[321914396,1712617851196,-151.0,0.00024657,7]
[321914397,1712617851206,-576.32,0.00024657,2]
[321914398,1712617851216,-151.0,0.00024657,7]
[321914399,1712617851225,-3376.06,0.00024657,2]
[321914400,1712617851234,-500.0,0.00024657,2]
[321914401,1712617851243,-1020.59,0.00024657,2]
[321914402,1712617851253,-500.0,0.00024657,2]
[321914403,1712617851263,-151.0,0.00024657,7]
[321914404,1712617851272,-500.0,0.00024657,2]
[321914405,1712617851282,-151.0,0.00024657,7]
[321914406,1712617851291,-1287.05,0.00024657,2]
[321914407,1712617851300,-300.47218535,0.00024657,2]
[321914408,1712617851309,-596.51065673,0.00024657,2]
[321914409,1712617851318,-218.09164485,0.00024657,2]
[321914410,1712617851328,-500.0,0.00024657,2]
[321914411,1712617851338,-492.67008119,0.00024657,2]
[321914412,1712617851347,-1257.19,0.00024657,2]
[321914413,1712617851356,-547.25,0.00024657,2]
[321914414,1712617851365,-1797.46,0.00024657,2]
[321914415,1712617851374,-534.56156192,0.00024657,2]
[321914416,1712617851384,-500.0,0.00024657,2]
[321914417,1712617851393,-500.0,0.00024657,2]
[321914418,1712617851403,-1912.09,0.00024657,2]
[321914419,1712617851413,-500.0,0.00024657,2]
[321914420,1712617851422,-500.0,0.00024657,2]
[321914421,1712617851433,-500.0,0.00024657,2]
[321914422,1712617851442,-516.06,0.00024657,2]
[321914423,1712617851451,-500.0,0.00024657,2]
[321914424,1712617851462,-500.0,0.00024657,2]
[321914425,1712617851472,-500.0,0.00024657,2]
[321914426,1712617851482,-947.21,0.00024657,2]
[321914427,1712617851492,-500.0,0.00024657,2]
[321914428,1712617851501,-500.0,0.00024657,2]
[321914429,1712617851511,-500.0,0.00024657,2]
[321914430,1712617851520,-500.0,0.00024657,2]
[321914431,1712617851529,-500.0,0.00024657,2]
[321914432,1712617851539,-2653.51,0.00024657,2]
[321914433,1712617851549,-500.0,0.00024657,2]
[321914434,1712617851559,-500.0,0.00024657,2]
[321914435,1712617851568,-500.0,0.00024657,2]
[321914436,1712617851578,-500.0,0.00024657,2]
[321914437,1712617851587,-559.94,0.00024657,2]
[321914438,1712617851596,-1157.65,0.00024657,2]
[321914439,1712617851606,-546.7,0.00024657,2]
[321914440,1712617851615,-734.84,0.00024657,2]
[321914441,1712617851625,-500.0,0.00024657,2]
[321914442,1712617851635,-500.0,0.00024657,2]
[321914443,1712617851644,-500.0,0.00024657,2]
[321914444,1712617851654,-899.34,0.00024657,2]
[321914445,1712617851664,-1958.39,0.00024657,2]
[321914446,1712617851673,-500.0,0.00024657,2]
[321914447,1712617851683,-500.0,0.00024657,2]
[321914448,1712617851693,-500.0,0.00024657,2]
[321914449,1712617851702,-500.0,0.00024657,2]
[321914450,1712617851712,-500.0,0.00024657,2]
[321914451,1712617851721,-509.15,0.00024657,2]
[321914452,1712617851731,-500.0,0.00024657,2]
[321914453,1712617851740,-500.0,0.00024657,2]
[321914454,1712617851750,-500.0,0.00024657,2]
[321914455,1712617851760,-500.0,0.00024657,2]
[321914456,1712617851769,-555.32,0.00024657,2]
[321914457,1712617851779,-500.0,0.00024657,2]
[321914458,1712617851789,-500.0,0.00024657,2]
[321914459,1712617851800,-500.0,0.00024657,2]
[321914460,1712617851812,-500.0,0.00024657,2]
[321914461,1712617851821,-500.0,0.00024657,2]
[321914462,1712617851831,-500.0,0.00024657,2]
[321914463,1712617851841,-500.0,0.00024657,2]
[321914464,1712617851851,-500.0,0.00024657,2]
[321914465,1712617851861,-500.0,0.00024657,2]
[321914466,1712617851871,-500.0,0.00024657,2]
[321914467,1712617851881,-500.0,0.00024657,2]
[321914468,1712617851891,-642.17,0.00024657,2]
[321914469,1712617851901,-500.0,0.00024657,2]
[321914470,1712617851910,-866.36,0.00024657,2]
[321914471,1712617851920,-500.0,0.00024657,2]
[321914472,1712617851930,-595.54,0.00024657,2]
[321914473,1712617851940,-375.15232091,0.00024657,2]
[321914474,1712617851949,-500.0,0.00024657,2]
[321914475,1712617851959,-500.0,0.00024657,2]
[321914476,1712617851969,-970.83745912,0.00024657,2]
[321914477,1712617851979,-1818.46,0.00024657,2]
[321914478,1712617852111,-500.0,0.00024657,2]
[321914479,1712617852122,-436.47917218,0.00024657,2]
[321914480,1712617852132,-1062.27,0.00024657,2]
[321914481,1712617852141,-1904.99,0.00024657,2]
[321914482,1712617852150,-500.0,0.00024657,2]
[321914483,1712617852160,-500.0,0.00024657,2]
[321914484,1712617852169,-500.0,0.00024657,2]
[321914485,1712617852178,-500.0,0.00024657,2]
[321914486,1712617852188,-500.0,0.00024657,2]
[321914487,1712617852197,-500.0,0.00024657,2]
[321914488,1712617852208,-1557.25,0.00024657,2]
[321914489,1712617852219,-1472.7,0.00024657,2]
[321914490,1712617852229,-500.0,0.00024657,2]
[321914491,1712617852239,-500.0,0.00024657,2]
[321914492,1712617852248,-638.49,0.00024657,2]
[321914493,1712617852257,-1395.03,0.00024657,2]
[321914494,1712617852267,-1641.63,0.00024657,2]
[321914495,1712617852277,-500.0,0.00024657,2]
[321914496,1712617852286,-500.0,0.00024657,2]
[321914497,1712617852298,-500.0,0.00024657,2]
[321914498,1712617852308,-2444.8,0.00024657,2]
[321914499,1712617852318,-500.0,0.00024657,2]
[321914500,1712617852329,-525.4434508,0.00024657,2]
[321914501,1712617852340,-869.16,0.00024657,2]
[321914502,1712617852350,-500.0,0.00024657,2]
[321914503,1712617852359,-943.43,0.00024657,2]
[321914504,1712617852369,-2389.3,0.00024657,2]
[321914505,1712617852380,-957.23,0.00024657,2]
[321914506,1712617852389,-510.11,0.00024657,2]
[321914507,1712617852399,-500.0,0.00024657,2]
[321914508,1712617852408,-500.0,0.00024657,2]
[321914509,1712617852418,-3416.91,0.00024657,2]
[321914510,1712617852428,-1025.1,0.00024657,2]
[321914511,1712617852437,-1256.18,0.00024657,2]
[321914512,1712617852446,-500.0,0.00024657,2]
[321914513,1712617852455,-500.0,0.00024657,2]
[321914514,1712617852466,-1945.03,0.00024657,2]
[321914515,1712617852476,-623.44,0.00024657,2]
[321914516,1712617852487,-1865.03,0.00024657,2]
[321914517,1712617852497,-500.0,0.00024657,2]
[321914518,1712617852507,-500.0,0.00024657,2]
[321914519,1712617852517,-500.0,0.00024657,2]
[321914520,1712617852527,-500.0,0.00024657,2]
[321914521,1712617852537,-500.0,0.00024657,2]
[321914522,1712617852546,-500.0,0.00024657,2]
[321914523,1712617852556,-872.2,0.00024657,2]
[321914524,1712617852566,-1835.17,0.00024657,2]
[321914525,1712617852576,-500.0,0.00024657,2]
[321914526,1712617852586,-500.0,0.00024657,2]
[321914527,1712617852597,-500.0,0.00024657,2]
[321914528,1712617852608,-500.0,0.00024657,2]
[321914529,1712617852620,-935.79,0.00024657,2]
[321914530,1712617852630,-500.0,0.00024657,2]
[321914531,1712617852640,-935.79,0.00024657,2]
[321914532,1712617852650,-935.79,0.00024657,2]
[321914533,1712617852659,-151.0,0.00024657,2]
[321914534,1712617852669,-935.79,0.00024657,2]
[321914535,1712617852679,-151.0,0.00024657,2]
[321914536,1712617852689,-935.79,0.00024657,2]
[321914537,1712617852699,-151.0,0.00024657,2]
[321914538,1712617852709,-935.79,0.00024657,2]
[321914539,1712617852719,-151.0,0.00024657,2]
[321914540,1712617852728,-935.79,0.00024657,2]
[321914541,1712617852738,-935.79,0.00024657,2]
[321914542,1712617852747,-935.79,0.00024657,2]
[321914543,1712617852757,-935.79,0.00024657,2]
[321914544,1712617852766,-935.79,0.00024657,2]
[321914545,1712617852775,-773.26,0.00024657,2]
[321914546,1712617852784,-935.79,0.00024657,2]
[321914547,1712617852793,-935.79,0.00024657,2]
[321914548,1712617852808,-500.0,0.00024657,2]
[321914549,1712617852819,-935.79,0.00024657,2]
[321914550,1712617852829,-935.79,0.00024657,2]
[321914551,1712617852838,-935.79,0.00024657,2]
[321914552,1712617852848,-935.79,0.00024657,2]
[321914553,1712617852858,-935.79,0.00024657,2]
[321914554,1712617852869,-935.79,0.00024657,2]
[321914555,1712617852878,-935.79,0.00024657,2]
[321914556,1712617852890,-935.79,0.00024657,2]
[321914557,1712617852899,-935.79,0.00024657,2]
[321914558,1712617852909,-500.0,0.00024657,2]
[321914559,1712617852918,-3646.58,0.00024657,2]
[321914560,1712617852928,-935.79,0.00024657,2]
[321914561,1712617852937,-500.0,0.00024657,2]
[321914562,1712617852947,-500.0,0.00024657,2]
[321914563,1712617852957,-935.94390201,0.00024657,2]
[321914564,1712617852967,-500.0,0.00024657,2]
[321914565,1712617852977,-500.0,0.00024657,2]
[321914566,1712617852986,-500.0,0.00024657,2]
[321914567,1712617852996,-2004.51,0.00024657,2]
[321914568,1712617853006,-500.0,0.00024657,2]
[321914569,1712617853015,-500.0,0.00024657,2]
[321914570,1712617853025,-500.0,0.00024657,2]
[321914571,1712617853034,-500.0,0.00024657,2]
[321914572,1712617853043,-500.0,0.00024657,2]
[321914573,1712617853053,-500.0,0.00024657,2]
[321914574,1712617853062,-623.1,0.00024657,2]
[321914575,1712617853072,-500.0,0.00024657,2]
[321914576,1712617853081,-500.0,0.00024657,2]
[321914577,1712617853090,-321.13655749,0.00024657,2]
[321914578,1712617853100,-500.0,0.00024657,2]
[321914579,1712617853109,-500.0,0.00024657,2]
[321914580,1712617853119,-1607.05,0.00024657,2]
[321914581,1712617853128,-500.0,0.00024657,2]
[321914582,1712617853137,-1539.15,0.00024657,2]
[321914583,1712617853147,-542.91,0.00024657,2]
[321914584,1712617853156,-1767.31,0.00024657,2]
[321914585,1712617853166,-500.0,0.00024657,2]
[321914586,1712617853175,-500.0,0.00024657,2]
[321914587,1712617853184,-500.0,0.00024657,2]
[321914588,1712617853194,-537.03,0.00024657,2]
[321914589,1712617853203,-500.0,0.00024657,2]
[321914590,1712617853213,-500.0,0.00024657,2]
[321914591,1712617853223,-684.03,0.00024657,2]
[321914592,1712617853233,-1947.86,0.00024657,2]
[321914593,1712617853242,-500.0,0.00024657,2]
[321914594,1712617853251,-1757.77,0.00024657,2]
[321914595,1712617853261,-620.65,0.00024657,2]
[321914596,1712617853271,-500.0,0.00024657,2]
[321914597,1712617853281,-500.0,0.00024657,2]
[321914598,1712617853290,-500.0,0.00024657,2]
[321914599,1712617853300,-500.0,0.00024657,2]
[321914600,1712617853309,-151.0,0.00024657,7]
[321914601,1712617853318,-230.066298,0.00024657,7]
[321914602,1712617853328,-500.0,0.00024657,2]
[321914603,1712617853337,-500.0,0.00024657,2]
[321914604,1712617853346,-500.0,0.00024657,2]
[321914605,1712617853356,-500.0,0.00024657,2]
[321914606,1712617853365,-300.0,0.00024657,2]
[321914607,1712617853375,-5914.1,0.00024657,2]
[321914608,1712617853384,-500.0,0.00024657,2]
[321914609,1712617853394,-1381.48,0.00024657,2]
[321914610,1712617853403,-223.83,0.00024657,2]
[321914611,1712617853412,-837.4,0.00024657,2]
[321914612,1712617853422,-500.0,0.00024657,2]
[321914613,1712617853431,-1465.74,0.00024657,2]
[321914614,1712617853441,-500.0,0.00024657,2]
[321914615,1712617853451,-491.11035796,0.00024657,2]
[321914616,1712617853461,-500.0,0.00024657,2]
[321914617,1712617853471,-1426.12,0.00024657,2]
[321914618,1712617853481,-151.0,0.00024657,7]
[321914619,1712617853491,-151.0,0.00024657,7]
[321914620,1712617853503,-503.53,0.00024657,2]
[321914621,1712617853513,-151.0,0.00024657,7]
[321914622,1712617853522,-151.0,0.00024657,7]
[321914623,1712617853532,-2511.15,0.00024657,2]
[321914624,1712617853544,-1733.31,0.00024657,2]
[321914625,1712617853554,-500.0,0.00024657,2]
[321914626,1712617853564,-500.0,0.00024657,2]
[321914627,1712617853574,-1074.23,0.00024657,2]
[321914628,1712617853584,-500.0,0.00024657,2]
[321914629,1712617853594,-629.27618108,0.00024657,2]
[321914630,1712617853603,-192.07693242,0.00024657,2]
[321914631,1712617853612,-500.0,0.00024657,2]
[321914632,1712617853622,-500.0,0.00024657,2]
[321914633,1712617853632,-500.0,0.00024657,2]
[321914634,1712617853641,-1559.32,0.00024657,2]
[321914635,1712617853651,-500.0,0.00024657,2]
[321914636,1712617853663,-391.68391462,0.00024657,2]
[321914637,1712617853672,-659.7,0.00024657,2]
[321914638,1712617853681,-854.64,0.00024657,2]
[321914639,1712617853691,-2109.64,0.00024657,2]
[321914640,1712617853700,-1740.08,0.00024657,2]
[321914641,1712617853710,-500.0,0.00024657,2]
[321914642,1712617853721,-500.0,0.00024657,2]
[321914643,1712617853730,-493.56170555,0.00024657,2]
[321914644,1712617853740,-571.74,0.00024657,2]
[321914645,1712617853749,-500.0,0.00024657,2]
[321914646,1712617853759,-1461.68,0.00024657,2]
[321914647,1712617853768,-342.06394108,0.00024657,2]
[321914648,1712617853777,-573.14,0.00024657,2]
[321914649,1712617853787,-500.0,0.00024657,2]
[321914650,1712617853796,-500.0,0.00024657,2]
[321914651,1712617853806,-500.0,0.00024657,2]
[321914652,1712617853818,-500.0,0.00024657,2]
[321914653,1712617853828,-500.0,0.00024657,2]
[321914654,1712617853838,-500.0,0.00024657,2]
[321914655,1712617853847,-500.0,0.00024657,2]
[321914656,1712617853858,-849.63,0.00024657,2]
[321914657,1712617853867,-500.0,0.00024657,2]
[321914658,1712617853876,-215.49495115,0.00024657,2]
[321914659,1712617853887,-514.65,0.00024657,2]
[321914660,1712617853896,-1538.83,0.00024657,2]
[321914661,1712617853905,-501.78448993,0.00024657,2]
[321914662,1712617853915,-500.0,0.00024657,2]
[321914663,1712617853924,-500.0,0.00024657,2]
[321914664,1712617853933,-500.0,0.00024657,2]
[321914665,1712617853942,-500.0,0.00024657,2]
[321914666,1712617853952,-500.0,0.00024657,2]
[321914667,1712617853961,-151.0,0.00024657,7]
[321914668,1712617853971,-151.0,0.00024657,7]
[321914669,1712617853980,-151.0,0.00024657,7]
[321914670,1712617853989,-151.0,0.00024657,7]
[321914671,1712617853998,-500.0,0.00024657,2]
[321914672,1712617854008,-500.0,0.00024657,2]
[321914673,1712617854017,-500.0,0.00024657,2]
[321914674,1712617854027,-500.0,0.00024657,2]
[321914675,1712617854036,-500.0,0.00024657,2]
[321914676,1712617854046,-1146.69,0.00024657,2]
[321914677,1712617854055,-500.0,0.00024657,2]
[321914678,1712617854064,-500.0,0.00024657,2]
[321914679,1712617854073,-648.61,0.00024657,2]
[321914680,1712617854082,-649.17,0.00024657,2]
[321914681,1712617854092,-928.33,0.00024657,2]
[321914682,1712617854102,-1848.39,0.00024657,2]
[321914683,1712617854111,-1184.07,0.00024657,2]
[321914684,1712617854121,-500.0,0.00024657,2]
[321914685,1712617854132,-586.71615435,0.00024657,2]
[321914686,1712617854144,-1698.37,0.00024657,2]
[321914687,1712617854153,-3043.69,0.00024657,2]
[321914688,1712617854164,-500.0,0.00024657,2]
[321914689,1712617854173,-3318.95,0.00024657,2]
[321914690,1712617854182,-500.0,0.00024657,2]
[321914691,1712617854192,-153.07213,0.00024657,7]
[321914692,1712617854202,-595.34,0.00024657,2]
[321914693,1712617854211,-153.07213,0.00024657,7]
[321914694,1712617854222,-153.07213,0.00024657,7]
[321914695,1712617854231,-153.07213,0.00024657,7]
[321914696,1712617854240,-1173.11,0.00024657,2]
[321914697,1712617854565,-500.0,0.00024657,2]
[321914698,1712617854577,-681.09,0.00024657,2]
[321914699,1712617854587,-965.28,0.00024657,2]
[321914700,1712617854596,-726.19,0.00024657,2]
[321914701,1712617854606,-153.07213,0.00024657,7]
[321914702,1712617854616,-153.07213,0.00024657,7]
[321914703,1712617854626,-153.07213,0.00024657,7]
[321914704,1712617854635,-1527.57,0.00024657,2]
[321914705,1712617854645,-153.07213,0.00024657,7]
[321914706,1712617854654,-1236.08,0.00024657,2]
[321914707,1712617854663,-500.0,0.00024657,2]
[321914708,1712617854673,-506.49,0.00024657,2]
[321914709,1712617854683,-2173.18,0.00024657,2]
[321914710,1712617854692,-500.0,0.00024657,2]
[321914711,1712617854702,-1361.08,0.00024657,2]
[321914712,1712617854711,-500.0,0.00024657,2]
[321914713,1712617854722,-500.0,0.00024657,2]
[321914714,1712617854731,-500.0,0.00024657,2]
[321914715,1712617854741,-2970.33,0.00024657,2]
[321914716,1712617854751,-1063.47,0.00024657,2]
[321914717,1712617854760,-734.04,0.00024657,2]
[321914718,1712617854770,-500.0,0.00024657,2]
[321914719,1712617854779,-500.0,0.00024657,2]
[321914720,1712617854789,-500.0,0.00024657,2]
[321914721,1712617854799,-500.0,0.00024657,2]
[321914722,1712617854812,-917.78,0.00024657,2]
[321914723,1712617854821,-1340.59,0.00024657,2]
[321914724,1712617854831,-500.0,0.00024657,2]
[321914725,1712617854841,-150.26417475,0.00024657,2]
[321914726,1712617854851,-500.0,0.00024657,2]
[321914727,1712617854860,-3033.91,0.00024657,2]
[321914728,1712617854870,-1676.3,0.00024657,2]
[321914729,1712617854879,-500.0,0.00024657,2]
[321914730,1712617854888,-500.0,0.00024657,2]
[321914731,1712617854898,-1470.64,0.00024657,2]